Cogmind - Beta 12 @@@ ROGUE MODE // 2023.04.29 @ 16:53:59 Player: Mr Goldstein Result: Destroyed by D-53 Grenadier with Mini Grenade Launcher Performance ------------- Evolutions (0) 0 Regions Visited (2) 400 Robots Destroyed (35) 175 Value Destroyed (815) 815 Prototype IDs (2) 40 Alien Tech Used (0) 0 Bonus (0) 0 TOTAL SCORE: 1430 Bonus ------- None Cogmind --------- Core Integrity 0/250 Matter 293/300 Energy 249/250 System Corruption 3% Temperature Cool (0) Movement Rolling (175) Ox5 Location -10/Mines Parts ------- > --- POWER (1) -------- Ion Engine > --- PROPULSION (2) --- Compact Wheel > --- UTILITY (2) ------ Huge Storage Unit > --- WEAPON (2) ------- Assault Rifle Assault Rifle > --- INVENTORY (25) --- Ion Engine Light Nuclear Core Wheel Wheel Wheel Heat Sink Small Storage Unit Large Matter Pod (150) High-capacity Matter Pod (94) Assault Rifle Light Assault Rifle Light Assault Rifle Light Assault Rifle Light Assault Rifle Light Assault Rifle Light Cannon Mini Grenade Launcher Mini Grenade Launcher Peak State ------------ > --- POWER ------------ Ion Engine > --- PROPULSION ------- Wheel Compact Wheel > --- UTILITY ---------- Improved Heat Sink Huge Storage Unit > --- WEAPON ----------- Assault Rifle Mini Grenade Launcher > --- INVENTORY -------- Ion Engine Light Nuclear Core Wheel Wheel Wheel Heat Sink Small Storage Unit Large Matter Pod Assault Rifle Assault Rifle Light Assault Rifle Light Assault Rifle Light Assault Rifle Light Assault Rifle Light Assault Rifle Light Cannon Mini Grenade Launcher [Rating: 12] Favorites ----------- Power Ion Engine Engine Ion Engine Propulsion Compact Wheel Wheel Compact Wheel Utility Improved Heat Sink Device Improved Heat Sink Storage Huge Storage Unit Weapon Assault Rifle Ballistic Gun Assault Rifle Launcher Mini Grenade Launcher Build | -11 -10 -10 ------- Run | Jun Mat Min Slots Evolved . | . . . Power . | . . . Propulsion . | . . . Utility . | . . . Weapon . | . . . Parts Attached 25 | 6 18 1 Power 5 | 1 4 . Engine 5 | 1 4 . Core . | . . . Reactor . | . . . Propulsion 7 | 2 5 . Treads . | . . . Leg . | . . . Wheel 7 | 2 5 . Hover . | . . . Flight . | . . . Utility 5 | 1 4 . Device 2 | . 2 . Storage 3 | 1 2 . Processor . | . . . Hackware . | . . . Protection . | . . . Artifact . | . . . Weapon 8 | 2 5 1 Energy Gun . | . . . Energy Cannon . | . . . Ballistic Gun 7 | 2 4 1 Ballistic Cannon . | . . . Launcher 1 | . 1 . Special Weapon . | . . . Impact Weapon . | . . . Slashing Weapon . | . . . Piercing Weapon . | . . . Special Melee Weapon . | . . . Unidentified Prototypes . | . . . Parts Lost 3 | . 1 2 Power . | . . . Propulsion 2 | . 1 1 Utility 1 | . . 1 Weapon . | . . . Highest Loss Streak 1 | . 1 1 To Critical Strikes . | . . . Average Slot Usage (%) 97 | . 99 88 Engine 14 | . 14 14 Wheel 25 | . 27 16 Device 13 | . 13 14 Storage 14 | . 14 14 Ballistic Gun 27 | . 28 25 Naked Turns . | . . . Heaviest Build 90 | 12 90 90 Greatest Support 32 | 32 32 26 Greatest Overweight (x) 5 | 2 4 5 Average Overweight (x) 2 | . 2 4 Largest Inventory Capacity 25 | 8 25 25 Average Capacity 22 | 7 22 25 Most Carried 18 | 1 18 18 Average Carried 13 | . 13 17 Final Capacity 25 | 8 25 25 Final Carried 18 | 1 17 18 Class Distribution -------------------- 98% | Mutant Dominant Class ---------------- Mutant | -10/Materials Mutant | -10/Mines Resources | -11 -10 -10 ----------- Run | Jun Mat Min Matter Collected 1313 | 239 878 196 Remotely . | . . . Salvage Created 1261 | . 1177 84 Parts 98 | . 94 4 Haulers Intercepted 1 | . 1 . Recyclers Shooed 4 | . 4 . Parts Field Recycled . | . . . Retrieved Matter . | . . . Parts Self-Destructed . | . . . Prevented . | . . . Kills | -11 -10 -10 ------- Run | Jun Mat Min Combat Hostiles Destroyed 22 | . 20 2 Guns 22 | . 20 2 Classes Destroyed 7 | . 7 . Worker 2 | . 2 . Builder 4 | . 4 . Hauler 1 | . 1 . Recycler 3 | . 3 . Watcher 3 | . 3 . Swarmer 3 | . 3 . Grunt 19 | . 17 2 Best Kill Streak 5 | . 5 2 Combat Bots Only 3 | . 3 2 Max Kills in Single Turn 1 | . 1 1 Gunslinging . | . . . Exploded . | . . . Melee . | . . . Uniques/NPCs Destroyed . | . . . Combat | -11 -10 -10 -------- Run | Jun Mat Min Damage Taken 964 | . 803 161 Core 260 | . 193 67 Absorbed by Shields . | . . . Regen/Repaired (Parts) 119 | . 119 . Core Remaining (%) 100 | 100 . . Volleys Fired 120 | . 110 10 Largest 2 | . 2 2 Hottest 40 | . 40 40 Shots Fired 241 | . 221 20 Gun 241 | . 221 20 Cannon . | . . . Launcher . | . . . Special . | . . . Kinetic 241 | . 221 20 Thermal . | . . . Explosive . | . . . Electromagnetic . | . . . Robot Hit Streak 16 | . 16 12 Robot Miss Streak 4 | . 4 2 Penetration Max . | . . . Secondary Targets 3 | . 2 1 Max Gunslinging Chain 1 | . 1 1 Shots Hit Robots 165 | . 150 15 Core Hits 63 | . 59 4 Critical Kills 2 | . 2 . Critical Parts Destroyed . | . . . Critical Strikes 2 | . 2 . Destroy 2 | . 2 . Melee Attacks . | . . . Impact . | . . . Slashing . | . . . Piercing . | . . . Sneak Attacks . | . . . Combat Hostiles . | . . . Follow-up Attacks . | . . . Damage Inflicted 1893 | . 1706 187 Guns 1893 | . 1706 187 Cannons . | . . . Explosions . | . . . Melee . | . . . Ramming . | . . . Kinetic 1893 | . 1706 187 Thermal . | . . . Explosive . | . . . Electromagnetic . | . . . Impact . | . . . Slashing . | . . . Piercing . | . . . Highest Corruption 3 | . 3 3 Average Corruption 1 | . 1 3 Corruption Purged . | . . . Corruption Blocked . | . . . Effects 21 | . 16 5 Message Errors 2 | . 1 1 Matter Fused 7 | . 3 4 Heat Flow Errors 4 | . 4 . Energy Discharges 3 | . 3 . Data Loss (minor) 2 | . 2 . Data Loss (major) 2 | . 2 . Misfires 1 | . 1 . Overload Shots . | . . . Overflow Damage . | . . . Projectiles . | . . . Explosions . | . . . Melee . | . . . Knockbacks . | . . . Impact . | . . . Kinetic . | . . . Secondary . | . . . Self-Inflicted Damage . | . . . Shots . | . . . Rammed . | . . . Targets Rammed . | . . . Kicked . | . . . Crushed . | . . . Highest Temperature 243 | . 243 . Average Temperature 108 | . 108 . Received Heat Transfer 468 | . 411 57 Siege Activations . | . . . Robots Corrupted . | . . . Combat Hostiles . | . . . Parts Fried . | . . . Impact Corruptions . | . . . Robots Melted . | . . . Combat Hostiles . | . . . Parts Melted . | . . . Heat Transferred . | . . . Parts Sabotaged . | . . . Parts Stolen . | . . . Parts Stripped . | . . . Power Chain Reactions . | . . . Missiles Intercepted . | . . . Alert | -11 -10 -10 ------- Run | Jun Mat Min Peak Influence 354 | . 354 130 Initial 90 | . . 90 Average 188 | . 209 118 Maximum Alert Level 1 | . 1 . Low Security (%) 46 | 100 33 100 Level 1 53 | . 66 . Level 2 . | . . . Level 3 . | . . . Level 4 . | . . . Level 5 . | . . . High Security . | . . . Max Security . | . . . Squads Dispatched 7 | . 7 . Investigation 4 | . 4 . Extermination . | . . . Reinforcement 3 | . 3 . Assault . | . . . Garrison . | . . . Intercept . | . . . Searches Triggered . | . . . Construction Impeded . | . . . Haulers Reinforced . | . . . Active Scanning Responses . | . . . Cargo Convoy Interrupts . | . . . Stealth | -11 -10 -10 --------- Run | Jun Mat Min Distress Signals 2 | . 2 . Communications Jammed . | . . . Distress Signals . | . . . Times Spotted 34 | . 31 3 Peak Tracking Total 5 | . 5 2 Tactical Retreats 3 | . 3 . Traps | -11 -10 -10 ------- Run | Jun Mat Min Traps Triggered 1 | . 1 . Indirectly . | . . . Trap Hack Attempts . | . . . Triggered . | . . . Disarmed . | . . . Reprogrammed . | . . . Reused . | . . . Traps Extracted . | . . . Installed . | . . . Triggered . | . . . Machines | -11 -10 -10 ---------- Run | Jun Mat Min Machines Disabled 1 | . 1 . Max in Single Turn 1 | . 1 . Machines Repaired . | . . . Machines Sabotaged . | . . . Overloaded Fab Kills . | . . . Hacking | -11 -10 -10 --------- Run | Jun Mat Min Machines Accessed 7 | . 7 . Terminals 4 | . 4 . Fabricators . | . . . Repair Stations 1 | . 1 . Recycling Units 2 | . 2 . Scanalyzers . | . . . Garrison Access . | . . . Total Hacks 23 | . 23 . Successful 13 | . 13 . Failed 9 | . 9 . Catastrophic 2 | . 2 . Database Lockouts 1 | . 1 . Manual 19 | . 19 . Terminals 17 | . 17 . Fabricators . | . . . Repair Stations 4 | . 4 . Recycling Units 2 | . 2 . Scanalyzers . | . . . Garrison Access . | . . . Terminal Hacks 4 | . 4 . Robot Analysis 2 | . 2 . Prototype ID Bank 1 | . 1 . Hauler Manifests 1 | . 1 . Fabricator Hacks . | . . . Repair Station Hacks 4 | . 4 . Scan Component 2 | . 2 . Repair 2 | . 2 . Recycling Unit Hacks . | . . . Scanalyzer . | . . . Garrison Access Hacks . | . . . Unauthorized Hacks 5 | . 5 . Terminals 3 | . 3 . Botnet 3 | . 3 . Fabricators . | . . . Repair Stations . | . . . Recycling Units 2 | . 2 . Tunnel 2 | . 2 . Scanalyzers . | . . . Garrison Access . | . . . Data Cores Recovered . | . . . Used . | . . . Hacking Detections 5 | . 5 . Full Trace Events 3 | . 3 . Feedback Events 1 | . 1 . Corruption 1 | . 1 . Feedback Blocked . | . . . Robot Schematics Acquired . | . . . Robots Built . | . . . Authchips . | . . . Time . | . . . Total Robot Build Rating . | . . . Part Schematics Acquired . | . . . Parts Built . | . . . Authchips . | . . . Time . | . . . Total Part Build Rating . | . . . Parts Repaired 2 | . 2 . Time 52 | . 52 . Parts Recycled . | . . . Recycled Matter . | . . . Retrieved Matter . | . . . Retrieved Components . | . . . Parts Scanalyzed . | . . . Part Schematics Acquired . | . . . Parts Damaged . | . . . Bothacking | -11 -10 -10 ------------ Run | Jun Mat Min Used RIF Installer . | . . . Robots Hacked . | . . . Non-combat . | . . . Combat . | . . . Robot Hacks Applied . | . . . Relay Couplers Released . | . . . Fabnet Peak Effective % . | . . . Robots Rewired . | . . . Allies Hacked . | . . . Hacks Repelled . | . . . Allies | -11 -10 -10 -------- Run | Jun Mat Min Total Allies 3 | . . 3 Largest Group 3 | . . 3 Highest-Rated Group 40 | . . 40 Highest-Rated Ally 16 | . . 16 Total Orders . | . . . Ally Attacks 5 | . . 5 Total Damage 44 | . . 44 Kills . | . . . Allies Corrupted . | . . . Allies Melted . | . . . Intel | -11 -10 -10 ------- Run | Jun Mat Min Robot Analysis Total 2 | . 2 . Derelict Logs Recovered 2 | . . 2 Drone Launches . | . . . Drone Recoveries . | . . . Exploration | -11 -10 -10 ------------- Run | Jun Mat Min Turns Passed 2143 | 55 1710 378 Spaces Moved 1043 | 49 786 208 Core 10 | 10 . . Treads . | . . . Legs . | . . . Wheels 1033 | 39 786 208 Hover . | . . . Flight . | . . . Fastest Speed 50 | 50 90 135 Average Speed 135 | 93 130 164 Slowest Speed 175 | 150 140 175 Overloaded Moves . | . . . Propulsion Burnouts . | . . . Robots Hopped . | . . . Cave-ins Triggered . | . . . Exploration Rate (%) 48 | 4 95 46 Regions Visited 2 Branch Regions 1 Pre-discovered Areas 2 | . 2 . Known Exits Taken . | . . . Unknown Exits Taken 2 | 1 1 . Scrap Searched 2 | . . 2 Spaces Dug . | . . . Terrain Destroyed . | . . . Melee . | . . . Projectile . | . . . AOE . | . . . Terrain Rammed . | . . . Walls Destroyed . | . . . Machines Disabled . | . . . Actions | -11 -10 -10 --------- Run | Jun Mat Min Total 1540 | 55 1261 224 Wait 332 | . 328 4 Move 1041 | 48 785 208 Hop . | . . . Pick Up 14 | 1 12 1 Fast Attach 9 | 6 3 . Attach . | . . . Detach . | . . . Swap 16 | . 15 1 Drop 8 | . 8 . Fire 120 | . 110 10 Melee . | . . . Ram . | . . . Kick . | . . . Crush . | . . . Escape Stasis . | . . . Rewire . | . . . Trap . | . . . Miscellaneous . | . . . Route ------- -11/Junkyard -10/Materials (discovered 5 exits: [*Mat x3] / [*Min x2]) -10/Mines History --------- Turn | Location | Event 32 | -11/Junkyard | Discovered new exit (range 15) 56 | -11/Junkyard | Entered Materials 316 | -10/Materials | Build established: Mutant 404 | -10/Materials | Core integrity fell below 50% 578 | -10/Materials | Discovered new exit (range 16) 789 | -10/Materials | Discovered new exit (range 16) 810 | -10/Materials | Central database locked down 932 | -10/Materials | Discovered new exit (range 6) 957 | -10/Materials | Discovered new exit (range 5) 1071 | -10/Materials | Discovered new exit (range 14) 1123 | -10/Materials | Repaired Assault Rifle 1151 | -10/Materials | Repaired Assault Rifle 1766 | -10/Materials | Entered Mines 1836 | -10/Mines | Learned location of 1 exit from Materials 1855 | -10/Mines | Core integrity fell below 20% 2006 | -10/Mines | Learned Materials terminal intel 2023 | -10/Mines | Assisted by bots powering up and referring to "LRC-V3" 2044 | -10/Mines | Assembled infested the area 2049 | -10/Mines | Assisted by a Guerilla fighting off Assembled 2144 | -10/Mines | Destroyed by D-53 Grenadier with Mini Grenade Launcher Last Messages --------------- squad. 02049_ A derelict emerges from the shadows: "You need to get out of here! I've been tracking a group of Assembled to figure out where they're coming from, and they're closing on this area, come on!" 02066_ System corrupted: Matter fused (-5). 02111_ Searching scrap... 02111_ Found Mining Laser. 02111_ Found Lgt. Ion Engine. 02111_ Found Med. Laser. 02111_ Found 26 Matter. 02112_ Acquired 26 matter. 02121_ The unstable cave ceiling collapses. 02127_ Acquired 68 matter. 02134_ The unstable cave ceiling collapses. 02136_ Acquired 6 matter. 02137_ The unstable cave ceiling collapses. 02141_ Imp. Heat Sink destroyed. 02143_ The unstable cave ceiling collapses. 02143_ Aluminum Leg crushed. 02143_ The unstable cave ceiling collapses. Map ----- +----------------------------------------------------+ | | | | | | | | | | | | | | | | | | | | | | | | | | | | | | | | | | | ?????????????????????????????????????????????????? | | ?????????????????????????????????????????????????? | | ?????????????????????????????????????????????????? | | ?????????????????????????????????????????????????? | | ??????????????????????##?#####???????????????????? | | ?????????????????????## ## # ##??????????????????? | | ???????????? ?????## ###????????????????? | | ?????????? ## # ##???????????????? | | ?????????? @ ##??????????????? | | ?????????????????## #??????????????? | | ??????????????????## # ##??????????????? | | ???????????????????# #??????????????? | | ?????????????????# # ##??????????????? | | ????????????????# g# # ##?????????????? | | ?????????????? ## ## #?????????????? | | ????????????? ?######### #???????? ###?? | | ????????????? d ?????????# #??????? ##? | | ????????????? ??????????#|#?????## #? | | ?????????????? # =%# ??????????# #???### #? | | ??????????????? # ! # ??????????#[#??## #?? | | ??????????????? =% ???????????#*#??# """ #??? | | ????????????????? ? ???????????# #??# """ #???? | | ????????????????????? ???? "?????# #???# """ ##??? | | ?????????????????????????# """ ## ##### """ ##?? | | ?????????????????????????# """ #?? | | ?????????????????????????# ######### #?? | | ?????????????????????????###?##?????????## #?? | | ?????????????????????????????????????????# #?? | | ????????????????????????????????????????## #?? | | ???????????????????????????????????????## #?? | | ???????????????????????????????????????# ##?? | | ???????????????????????????????????????# ##??? | | ???????????????????????????????????????# ##???? | +----------------------------------------------------+ Best States ------------- Heat Dissipation 39 Energy Generation 10 Energy Capacity 250 Matter Stores 300 Matter Capacity 300 Sight Range 16 Terrain Scan Density 10 Evasion (%) 50 Item Schematics ----------------- None Robot Schematics ------------------ None Fabricated ------------ Nothing Alien Tech Used ----------------- None Achievements -------------- None Challenges ------------ None Game ------ Seed TerrainDisruptorTerrabomb Manual? 0 Play Time 00:12:46 Cumulative 157.3 hours Start 2023.04.29 @ 16:42:52 End 2023.04.29 @ 16:53:59 Sessions 1 Manual Loads 0 Difficulty Rogue Special Mode None Game No. 474 Rogue 474 Adventurer 0 Explorer 0 Win Type - Total 7 Types 6/0/0/1/0/0/0/0/0 Lore% 66 Gallery% 72 Achievement% 62 Wizard Run 0 Options --------- ASCII 0 Keyboard 0 Movement Mouse Keybinds 0 Fullscreen 1 Font 16/SmallcapsGlow Map View 75x55 Tactical HUD 1 Map Filters NONE Filters NONE Steam 1 RUN: 64021f18-672e-41af-9f4f-9a859dce57e0